Cogmind - Beta 15 @@@ ROGUE MODE // 2025.08.09 @ 22:34:12 Player: Zoe Result: Destroyed by S-10 Pest with Light Assault Rifle Performance ------------- Evolutions (0) 0 Regions Visited (3) 600 Robots Destroyed (15) 75 Value Destroyed (430) 430 Prototype IDs (0) 0 Alien Tech Used (0) 0 Bonus (0) 0 TOTAL SCORE: 1105 Bonus ------- None Cogmind --------- Core Integrity 0/250 Matter 285/300 Energy 99/100 System Corruption 0% Temperature Cool (0) Movement Core (50) Location -10/Subcaves Parts ------- > --- POWER (1) -------- (None) > --- PROPULSION (2) --- (None) > --- UTILITY (2) ------ (None) > --- WEAPON (2) ------- (None) > --- INVENTORY (5) ---- Light Ion Engine Large Storage Unit Sensor Array Sensor Array Mining Laser Peak State ------------ > --- POWER ------------ Ion Engine > --- PROPULSION ------- Light Treads Light Treads > --- UTILITY ---------- Small Storage Unit Sensor Array > --- WEAPON ----------- Assault Rifle Light Assault Rifle > --- INVENTORY -------- Light Ion Engine Aluminum Leg Aluminum Leg Sensor Array Improved Terrain Scanner Seismic Detector Medium Laser Mining Laser [Rating: 8] Favorites ----------- Power Ion Engine Engine Ion Engine Propulsion Light Treads Treads Light Treads Leg Aluminum Leg Utility Large Storage Unit Device Sensor Array Storage Large Storage Unit Weapon Assault Rifle Energy Gun Medium Laser Ballistic Gun Assault Rifle Special Weapon Mining Laser Build | -11 -10 -10 -10 ------- Run | Yrd Mat Min Sub Slots Evolved . | . . . . Power . | . . . . Propulsion . | . . . . Utility . | . . . . Weapon . | . . . . Parts Attached 15 | 7 3 3 2 Power 3 | 1 . 2 . Engine 3 | 1 . 2 . Core . | . . . . Reactor . | . . . . Propulsion 4 | 2 . . 2 Treads 2 | 2 . . . Leg 2 | . . . 2 Wheel . | . . . . Hover . | . . . . Flight . | . . . . Utility 4 | 2 2 . . Device 2 | 1 1 . . Storage 2 | 1 1 . . Processor . | . . . . Hackware . | . . . . Protection . | . . . . Artifact . | . . . . Weapon 4 | 2 1 1 . Energy Gun 1 | . . 1 . Energy Cannon . | . . . . Ballistic Gun 2 | 2 . . . Ballistic Cannon . | . . . . Launcher . | . . . . Special Weapon 1 | . 1 . . Impact Weapon . | . . . . Slashing Weapon . | . . . . Piercing Weapon . | . . . . Special Melee Weapon . | . . . . Unidentified Prototypes . | . . . . Parts Lost 8 | . . 1 7 Power 1 | . . . 1 Propulsion 3 | . . . 3 Utility 1 | . . . 1 Weapon 3 | . . 1 2 Highest Loss Streak 5 | . . 1 5 To Critical Strikes . | . . . . Average Backups 8 | 4 7 10 9 Power . | . 1 1 1 Propulsion 1 | 1 2 2 1 Utility 3 | . 2 6 6 Weapon 1 | 1 2 1 1 Tool/Special . | . . . . Unused Backups 5 | . . . 5 Power . | . . . . Propulsion . | . . . . Utility 5 | . . . 5 Weapon . | . . . . Tool/Special . | . . . . Average Slot Usage (%) 92 | . 100 99 80 Engine 14 | . 14 14 14 Treads 24 | . 28 28 16 Leg 2 | . . . 7 Device 12 | . 14 14 9 Storage 14 | . 14 14 14 Energy Gun 5 | . . 12 8 Ballistic Gun 18 | . 26 14 8 Peak Build Rating 8 | 7 8 8 8 Average Rating 6 | 4 7 7 6 On Entrance 5 | . 7 8 8 Naked Turns 3 | . . . 3 Heaviest Build 30 | 14 29 30 30 Greatest Support 40 | 40 40 40 40 Greatest Overweight (x) 8 | . . . 8 Average Overweight (x) . | . . . . Largest Inventory Capacity 15 | 8 15 15 15 Average Capacity 11 | 7 9 15 14 Most Carried 11 | 7 11 11 10 Average Carried 8 | 4 7 10 9 Final Capacity 15 | 8 15 15 5 Final Carried 11 | 6 11 10 5 Class Distribution -------------------- 100% | Mutant Dominant Class ---------------- Mutant | -10/Materials Mutant | -10/Mines Mutant | -10/Subcaves Resources | -11 -10 -10 -10 ----------- Run | Yrd Mat Min Sub Matter Collected 534 | 290 112 132 . Remotely . | . . . . Salvage Created 558 | 99 275 142 42 Parts 27 | 6 14 7 . Haulers Intercepted . | . . . . Recyclers Shooed 1 | 1 . . . Parts Field Recycled . | . . . . Retrieved Matter . | . . . . Parts Self-Destructed 4 | . . . 4 Prevented . | . . . . Kills | -11 -10 -10 -10 ------- Run | Yrd Mat Min Sub Combat Hostiles Destroyed 12 | . 8 3 1 Guns 12 | . 8 3 1 Classes Destroyed 6 | 2 3 . 1 Tunneler 1 | 1 . . . Recycler 1 | 1 . . . Mechanic 1 | . 1 . . Swarmer 3 | . 3 . . Grunt 8 | . 5 3 . Subdweller 1 | . . . 1 Best Kill Streak 5 | 1 5 2 1 Combat Bots Only 5 | . 5 2 1 Max Kills in Single Turn 2 | 1 2 1 1 Gunslinging 1 | . 1 . . Exploded . | . . . . Melee . | . . . . Uniques/NPCs Destroyed . | . . . . Combat | -11 -10 -10 -10 -------- Run | Yrd Mat Min Sub Hostile Shots Fired 113 | . 31 20 62 Missed 35 | . 8 7 20 Hits 78 | . 23 13 42 Projectile 78 | . 23 13 42 Damage Taken 1176 | . 267 199 710 Core 253 | . 11 43 199 Absorbed by Shields . | . . . . Core Remaining (%) 100 | 100 . . . Volleys Fired 61 | 5 30 15 11 Largest 2 | 2 2 2 2 Hottest 100 | 40 100 70 70 Shots Fired 117 | 10 58 28 21 Gun 115 | 10 56 28 21 Cannon . | . . . . Launcher . | . . . . Special 2 | . 2 . . Kinetic 93 | 10 56 17 10 Thermal 24 | . 2 11 11 Explosive . | . . . . Electromagnetic . | . . . . Robot Hit Streak 13 | 6 13 13 10 Robot Miss Streak 8 | 1 8 3 2 Penetration Max . | . . . . Secondary Targets 1 | . 1 . . Max Gunslinging Chain 1 | . 1 . . Shots Hit Robots 80 | 8 34 22 16 Core Hits 32 | 3 18 8 3 Critical Kills . | . . . . Critical Parts Destroyed . | . . . . Critical Strikes 1 | . . . 1 Burn 1 | . . . 1 Melee Attacks . | . . . . Impact . | . . . . Slashing . | . . . . Piercing . | . . . . Sneak Attacks . | . . . . Combat Hostiles . | . . . . Follow-up Attacks . | . . . . Damage Inflicted 904 | 87 361 247 209 Guns 904 | 87 361 247 209 Cannons . | . . . . Explosions . | . . . . Melee . | . . . . Ramming . | . . . . Kinetic 686 | 87 361 150 88 Thermal 218 | . . 97 121 Explosive . | . . . . Electromagnetic . | . . . . Impact . | . . . . Slashing . | . . . . Piercing . | . . . . Highest Corruption . | . . . . Average Corruption . | . . . . Corruption Purged . | . . . . Corruption Blocked . | . . . . Overload Shots . | . . . . Overflow Damage . | . . . . Projectiles . | . . . . Explosions . | . . . . Melee . | . . . . Knockbacks . | . . . . Impact . | . . . . Kinetic . | . . . . Secondary . | . . . . Self-Inflicted Damage . | . . . . Shots . | . . . . Rammed . | . . . . Targets Rammed . | . . . . Kicked . | . . . . Crushed . | . . . . Highest Temperature 144 | . 20 144 . Average Temperature 43 | . 8 62 . Received Heat Transfer 426 | . 135 114 177 Siege Activations . | . . . . Martial Activations . | . . . . Shielding Activations . | . . . . Robots Disrupted . | . . . . Combat Hostiles . | . . . . Robots Corrupted . | . . . . Combat Hostiles . | . . . . Parts Fried . | . . . . Impact Corruptions . | . . . . Robots Melted . | . . . . Combat Hostiles . | . . . . Parts Melted 1 | . . 1 . Heat Transferred 740 | . . 296 444 Parts Sabotaged . | . . . . Parts Stolen . | . . . . Parts Stripped . | . . . . Power Chain Reactions . | . . . . Alert | -11 -10 -10 -10 ------- Run | Yrd Mat Min Sub Maximum Alert Level . | . . . . Low Security (%) 100 | 100 100 100 . Level 1 . | . . . . Level 2 . | . . . . Level 3 . | . . . . Level 4 . | . . . . Level 5 . | . . . . High Security . | . . . . Max Security . | . . . . Peak Influence 160 | 5 160 60 . Initial 30 | . . 30 . Average 56 | . 80 32 . Influence Increases 411 | 10 246 95 60 Destroy 0b10 Robot/C 220 | . 160 60 . Destroy 0b10 Robot/NC 15 | 10 5 . . Destroy Leader 50 | . 30 20 . Successful Hack 5 | . 5 . . Disable Machine 15 | . 15 . . Destroy Structure 1 | . 1 . . Lose Combat Pursuer 105 | . 30 15 60 Influence Decreases 371 | 10 167 139 55 Entered New Map 68 | . . 49 19 Time Decay 283 | 10 167 80 26 Lost Part 20 | . . 10 10 Squads Dispatched 2 | . 2 . . Investigation . | . . . . Extermination . | . . . . Reinforcement 2 | . 2 . . Assault . | . . . . Garrison . | . . . . Intercept . | . . . . Searches Triggered . | . . . . Construction Impeded . | . . . . Haulers Reinforced . | . . . . Active Scanning Responses . | . . . . Cargo Convoy Interrupts . | . . . . Stealth | -11 -10 -10 -10 --------- Run | Yrd Mat Min Sub Distress Signals 2 | . 2 . . Communications Jammed . | . . . . Distress Signals . | . . . . Times Spotted 34 | . 20 4 10 Peak Tracking Total 6 | . 5 2 6 Tactical Retreats 4 | . 2 1 1 Traps | -11 -10 -10 -10 ------- Run | Yrd Mat Min Sub Traps Triggered . | . . . . Indirectly . | . . . . Trap Hack Attempts . | . . . . Triggered . | . . . . Disarmed . | . . . . Reprogrammed . | . . . . Reused . | . . . . Traps Extracted . | . . . . Installed . | . . . . Triggered . | . . . . Machines | -11 -10 -10 -10 ---------- Run | Yrd Mat Min Sub Machines Disabled 1 | . 1 . . Max in Single Turn 1 | . 1 . . Machines Repaired . | . . . . Machines Dismantled . | . . . . Machines Sabotaged . | . . . . Overloaded Fab Kills . | . . . . Hacking | -11 -10 -10 -10 --------- Run | Yrd Mat Min Sub Machines Accessed 1 | . 1 . . Terminals 1 | . 1 . . Fabricators . | . . . . Repair Stations . | . . . . Recycling Units . | . . . . Scanalyzers . | . . . . Garrison Access . | . . . . Total Hacks 2 | . 2 . . Successful 1 | . 1 . . Failed 1 | . 1 . . Catastrophic . | . . . . Database Lockouts . | . . . . Manual 2 | . 2 . . Terminals 2 | . 2 . . Fabricators . | . . . . Repair Stations . | . . . . Recycling Units . | . . . . Scanalyzers . | . . . . Garrison Access . | . . . . Terminal Hacks . | . . . . Fabricator Hacks . | . . . . Repair Station Hacks . | . . . . Recycling Unit Hacks . | . . . . Scanalyzer . | . . . . Garrison Access Hacks . | . . . . Unauthorized Hacks 1 | . 1 . . Terminals 1 | . 1 . . Botnet 1 | . 1 . . Fabricators . | . . . . Repair Stations . | . . . . Recycling Units . | . . . . Scanalyzers . | . . . . Garrison Access . | . . . . Data Cores Recovered . | . . . . Used . | . . . . Hacking Detections . | . . . . Full Trace Events . | . . . . Feedback Events . | . . . . Feedback Blocked . | . . . . Robot Schematics Acquired . | . . . . Robots Built . | . . . . Authchips . | . . . . Time . | . . . . Total Robot Build Rating . | . . . . Part Schematics Acquired . | . . . . Parts Built . | . . . . Authchips . | . . . . Time . | . . . . Total Part Build Rating . | . . . . Parts Repaired . | . . . . Time . | . . . . Parts Recycled . | . . . . Recycled Matter . | . . . . Retrieved Matter . | . . . . Retrieved Components . | . . . . Parts Scanalyzed . | . . . . Part Schematics Acquired . | . . . . Parts Damaged . | . . . . Bothacking | -11 -10 -10 -10 ------------ Run | Yrd Mat Min Sub Used RIF Installer . | . . . . Robots Hacked . | . . . . Non-combat . | . . . . Combat . | . . . . Robot Hacks Applied . | . . . . Relay Couplers Released . | . . . . Fabnet Peak Effective % . | . . . . Robots Rewired . | . . . . Allies Hacked . | . . . . Hacks Repelled . | . . . . Allies | -11 -10 -10 -10 -------- Run | Yrd Mat Min Sub Total Allies . | . . . . Largest Group . | . . . . Highest-Rated Group . | . . . . Highest-Rated Ally . | . . . . Total Orders . | . . . . Ally Attacks . | . . . . Total Damage . | . . . . Kills . | . . . . Allies Corrupted . | . . . . Allies Melted . | . . . . Intel | -11 -10 -10 -10 ------- Run | Yrd Mat Min Sub Active Infowar (turns) 846 | 26 433 176 211 Sensors 573 | . 186 176 211 Seismic 273 | 26 247 . . Robot Analysis Total . | . . . . Derelict Logs Recovered . | . . . . Drone Launches . | . . . . Drone Recoveries . | . . . . Exploration | -11 -10 -10 -10 ------------- Run | Yrd Mat Min Sub Turns Passed 1047 | 113 435 176 323 Spaces Moved 469 | 56 173 79 161 Core 16 | 9 . . 7 Treads 403 | 47 173 79 104 Legs 50 | . . . 50 Wheels . | . . . . Hover . | . . . . Flight . | . . . . Fastest Speed 50 | 50 160 160 50 Average Speed 164 | 142 160 160 179 Slowest Speed 450 | 160 160 160 450 Overloaded Moves . | . . . . Propulsion Burnouts . | . . . . Robots Hopped . | . . . . Potential Cave-ins . | . . . . Cave-ins Triggered . | . . . . Exploration Rate (%) 16 | 3 37 16 11 Regions Visited 3 Branch Regions 2 Pre-discovered Areas . | . . . . Known Exits Taken . | . . . . Unknown Exits Taken 3 | 1 1 1 . Scrap Searched 1 | . . 1 . Spaces Dug 1 | . 1 . . Terrain Destroyed 1 | . 1 . . Melee . | . . . . Projectile 1 | . 1 . . AOE . | . . . . Terrain Rammed . | . . . . Walls Destroyed . | . . . . Machines Disabled . | . . . . Actions | -11 -10 -10 -10 --------- Run | Yrd Mat Min Sub Total 628 | 80 273 101 174 Wait 62 | . 59 3 . Move 466 | 55 172 78 161 Hop . | . . . . Pick Up 19 | 13 5 1 . Fast Attach . | . . . . Attach 10 | 7 . 1 2 Detach . | . . . . Swap 8 | . 6 2 . Drop 2 | . 1 1 . Fire 61 | 5 30 15 11 Melee . | . . . . Ram . | . . . . Kick . | . . . . Crush . | . . . . Escape Stasis . | . . . . Rewire . | . . . . Trap . | . . . . Miscellaneous . | . . . . Route ------- -11/Scrapyard -10/Materials -10/Mines -10/Subcaves History --------- Turn | Location | Event 15 | -11/Scrapyard | Discovered new exit (range 15) 114 | -11/Scrapyard | Entered Materials 313 | -10/Materials | Build established: Mutant 392 | -10/Materials | Discovered new exit (range 9) 549 | -10/Materials | Entered Mines 717 | -10/Mines | Discovered new exit (range 6) 725 | -10/Mines | Entered Subcaves 726 | -10/Subcaves | Approached by a straggling Scientist 915 | -10/Subcaves | Core integrity fell below 50% 950 | -10/Subcaves | Core integrity fell below 20% 967 | -10/Subcaves | Lost 5 parts (2n1u2w) 1045 | -10/Subcaves | Released all parts (2) 1048 | -10/Subcaves | Destroyed by S-10 Pest with Light Assault Rifle Last Messages --------------- back to the UFD." 35-WOK(c): "I think it's somewhere northwest of here" 00901_ Lgt. Treads destroyed. 00914_ JK-PDQ(R) destroyed. 00918_ Lgt. Treads destroyed. 00920_ Assault Rifle destroyed. 00923_ 55-NN0(R) suffers critical hit (Burn). 00924_ Med. Laser destroyed. 35-WOK(c): "I think it's somewhere northwest of here" 00936_ Sensor Array destroyed. 00973_ Aluminum Leg destroyed. 35-WOK(c): "I think it's somewhere northwest of here" 01020_ Aluminum Leg fries itself beyond repair. 01020_ Subatomizers dissect the Sml. Laser. 01043_ Ion Engine destroyed. 01045_ Released Lrg. Storage Unit. 01045_ Released Aluminum Leg. Map ----- +----------------------------------------------------+ | #?# #???????????????????????????????????? | | #### ??# ##??????????????????????????????????? | | #??# ???# #??????????????????????????????????? | | # ?## ???## ##??????????###?????????????????????? | | ??#????# #??????##### ##????????????????????? | | ???????## ###????## #???#????????????????? | | #???????# ####?# #??? #???????????????? | | ?####### ### ##??? ###?????????????? | | ## ## ## ## ##???? #? ##?????????? | | ##????? #? ????????? | | ##?????? # #????????? | | ## ###### #??????? # ????????? | | #### #????#####????### ?????????? | | ###?## ##????????????# ?????????? | | # ##### ### ##???????????# ??? #?????? | | ###??## #???????????? #### ##?????? | | ?????# #?##?######### #?????? | | ?????## ### ## # ## #? #?????? | | ??????##### ### ## #????????? | | ??####????# ## s ##????????? | | ??# ##### ## ## ### s! s& #????????? | | ???# ## ## ##### !!= %[ #????? | | ???# ###[= ##### !##& #????? | | ???## ##?## ##??## ##? #???? | | ????### ###??# ???# ##?? #???? | | ?????# ##????## ##??# @ ##??? #########???? | | ??##### #????# #####????? ???????????? | | ?## ### ##????## #?????????? ??????????? | | ?# # # #?????### ??????????? ?????????? | | ?#### #???????## ???????????? "#????????? | | ????#######????????# ?????????????" "#????????? | | ???????????????????# ??????????????""""#????????? | | ???????????????????# ????????????????###?????????? | | ??????????????????? ?????????????????????????????? | | ??????????????????#??????????????????????????????? | | ?????????????????????????????????????????????????? | | ?????????????????????????????????????????????????? | | ?????????????????????????????????????????????????? | | ?????????????????????????????????????????????????? | | ?????????????????????????????????????????????????? | | ?????????????????????????????????????????????????? | | ?????????????????????????????????????????????????? | | ?????????????????????????????????????????????????? | | ?????????????????????????????????????????????????? | | ?????????????????????????????????????????????????? | | ?????????????????????????????????????????????????? | | ?????????????????????????????????????????????????? | | ?????????????????????????????????????????????????? | | ?????????????????????????????????????????????????? | | ?????????????????????????????????????????????????? | +----------------------------------------------------+ Best States ------------- Heat Dissipation 25 Energy Generation 10 Energy Capacity 250 Matter Stores 300 Matter Capacity 300 Sight Range 16 Robot Scan Range 14 Terrain Scan Density 10 Evasion (%) 50 Recoil Reduction 2 Item Schematics ----------------- None Robot Schematics ------------------ None Fabricated ------------ Nothing Repaired ---------- Nothing Alien Tech Used ----------------- None Achievements -------------- None Challenges ------------ None Game ------ Seed SmallPowerImmobilizer Manual? 0 Play Time 00:09:22 Cumulative 43.1 hours Start 2025.08.09 @ 22:25:42 End 2025.08.09 @ 22:34:12 Sessions 1 Manual Loads 0 Difficulty Rogue Special Mode None Game No. 84 Rogue 81 Adventurer 3 Explorer 0 Win Type - Total 0 Types 0/0/0/0/0/0/0/0/0/0 Lore% 29 Gallery% 29 Achievement% 30 Wizard Run 0 Options --------- Layout 1 ASCII 0 Keyboard 0 Movement Mouse Keybinds 0 Fullscreen 1 Font 24/Smallcaps Map View 50x35 Zoom Use 0% Tactical HUD 1 Map Filters NONE Filters NONE Steam 1 RUN: 1622fcc0-f4f0-4dec-8566-cc219e76c447